lending/lending_fUSD_20241005
["ID","MTS","AMOUNT","RATE_DAILY","PERIOD"]
[339872064,1728097831770,-138.97982347,0.000169,2]
[339872066,1728097831780,-457.29170079,0.000169,2]
[339872068,1728097831791,-14.69797574,0.000169,2]
[339872070,1728097831801,-350.0,0.00017,2]
[339872072,1728097831809,-400.0,0.00019,2]
[339872074,1728097831818,-450.0,0.00021,2]
[339872077,1728097831827,-500.0,0.00023,2]
[339872080,1728097831836,-550.0,0.00025,2]
[339872083,1728097831845,-150.0,0.00030123,120]
[339872085,1728097831854,-3266.0,0.00031,3]
[339872087,1728097831864,-250.0,0.00036879,2]
[339872088,1728097831873,-2500.0,0.00037252,5]
[339872091,1728097831883,-334.989,0.00037279,48]
[339872093,1728097831892,-500.0,0.00037279,30]
[339872095,1728097831901,-500.0,0.00037279,30]
[339872096,1728097831910,-500.0,0.00037279,30]
[339872098,1728097831920,-500.0,0.00037279,30]
[339872099,1728097831929,-500.0,0.00037279,30]
[339872100,1728097831938,-500.0,0.00037279,30]
[339872101,1728097831947,-500.0,0.00037279,30]
[339872102,1728097831956,-500.0,0.00037279,30]
[339872103,1728097831964,-500.0,0.00037279,30]
[339872104,1728097831973,-1030.76815776,0.00037473,5]
[339872105,1728097831983,-500.0,0.00037553,30]
[339872107,1728097831992,-500.0,0.00037553,30]
[339872109,1728097832001,-500.0,0.00037553,30]
[339872111,1728097832010,-500.0,0.00037553,30]
[339872113,1728097832021,-500.0,0.00037553,30]
[339872115,1728097832030,-500.0,0.00037553,30]
[339872117,1728097832039,-500.0,0.00037553,30]
[339872119,1728097832048,-500.0,0.00037553,30]
[339872121,1728097832057,-500.0,0.00037553,30]
[339872123,1728097832066,-174.43,0.00037564,2]
[339872124,1728097832075,-500.0,0.00037827,30]
[339872126,1728097832085,-501.31935495,0.00037827,30]
[339872128,1728097832095,-518.3843659,0.00037827,30]
[339872129,1728097832104,-500.0,0.00037827,30]
[339872131,1728097832112,-504.32092431,0.00037827,30]
[339872133,1728097832121,-515.06231125,0.00037827,30]
[339872134,1728097832131,-500.0,0.00037827,30]
[339872135,1728097832140,-634.61,0.00037827,30]
[339872136,1728097832149,-500.0,0.00037827,30]
[339872137,1728097832158,-500.0,0.00038101,30]
[339872138,1728097832167,-500.0,0.00038101,30]
[339872139,1728097832179,-500.0,0.00038101,30]
[339872140,1728097832188,-500.0,0.00038101,30]
[339872141,1728097832197,-500.0,0.00038375,120]
[339872142,1728097832206,-500.0,0.00038375,120]
[339872143,1728097832215,-227.40932192,0.00038375,120]
[339872144,1728097832224,-500.0,0.00038375,120]
[339872145,1728097832233,-150.0,0.00038403,2]
[339872146,1728097832243,-502.60950044,0.00038649,120]
[339872147,1728097832252,-500.0,0.00038649,120]
[339872148,1728097832261,-500.0,0.00038649,120]
[339872149,1728097832270,-250.0,0.00038809,2]
[339872150,1728097832279,-579.99558417,0.00038923,120]
[339872151,1728097832288,-500.0,0.00038923,120]
[339872152,1728097832297,-500.0,0.00039196,120]
[339872153,1728097832306,-1000.0,0.00039211,2]
[339872154,1728097832315,-243.9,0.00039305,2]
[339872155,1728097832323,-500.0,0.0003947,120]
[339872156,1728097832333,-287.05,0.00039613,2]
[339872157,1728097832341,-250.0,0.00039619,2]
[339872158,1728097832354,-250.0,0.00039622,2]
[339872159,1728097832363,-223.33231605,0.00039744,120]
[339872160,1728097832372,-174.43,0.00039828,2]
[339872161,1728097832381,-181.62,0.00039897,120]
[339872162,1728097832390,-302.66,0.0004,120]
[339872163,1728097832399,-359.0,0.0004,5]
[339872164,1728097832408,-182.2,0.00040336,120]
[339872165,1728097832417,-250.0,0.0004074,120]
[339872166,1728097832426,-710.6021255,0.00041,120]
[339872167,1728097832435,-157.0,0.00041096,2]
[339872168,1728097832444,-4000.0,0.00041575,28]
[339872169,1728097832453,-508.019089,0.00042021,120]
[339872170,1728097832462,-174.43,0.00042092,2]
[339872171,1728097832471,-12083.66930234,0.000425,60]
[339872172,1728097832480,-600.0,0.00043,120]
[339872173,1728097832489,-508.11462739,0.00043163,30]
[339872174,1728097832498,-500.0,0.00043163,30]
[339872175,1728097832507,-500.0,0.00043163,30]
[339872176,1728097832516,-150.0,0.00043276,2]
[339872177,1728097832525,-180.0,0.0004335,120]
[339872178,1728097832533,-418.58947539,0.00043497,2]
[339872179,1728097832542,-418.58947539,0.00043821,2]
[339872180,1728097832551,-418.58947539,0.00043981,2]
[339872181,1728097832562,-150.0,0.00044,57]
[339872182,1728097832571,-1000.0,0.00044113,2]
[339872183,1728097832581,-418.58947539,0.00044198,2]
[339872184,1728097832590,-500.0,0.00044259,30]
[339872185,1728097832601,-500.0,0.00044259,30]
[339872186,1728097832610,-174.43,0.00044355,2]
[339872187,1728097832619,-418.58947539,0.00044455,2]
[339872188,1728097832628,-418.58947539,0.00044899,2]
[339872189,1728097832637,-418.58947539,0.00045199,2]
[339872190,1728097832646,-500.0,0.00045355,30]
[339872191,1728097832656,-500.0,0.00045355,30]
[339872192,1728097832665,-418.58947539,0.0004541,2]
[339872193,1728097832674,-418.58947539,0.00045671,2]
[339872194,1728097832684,-418.58947539,0.00045756,2]
[339872195,1728097832693,-1171.0,0.0004606,7]
[339872196,1728097832703,-1001.93906021,0.0004606,10]
[339872197,1728097832712,-1064.6900522,0.0004606,10]
[339872198,1728097832721,-418.58947539,0.00046174,2]
[339872199,1728097832730,-4011.0,0.0004633,117]
[339872200,1728097832739,-521.22392282,0.00046451,30]
[339872201,1728097832750,-500.0,0.00046451,30]
[339872202,1728097832760,-418.58947546,0.00046488,2]
[339872203,1728097832769,-500.0,0.00046575,120]
[339872204,1728097832778,-500.0,0.00046575,120]
[339872205,1728097832788,-351.41063306,0.00046575,120]
[339872206,1728097832797,-500.0,0.00046575,120]
[339872207,1728097832807,-500.0,0.00046575,120]
[339872208,1728097832816,-500.0,0.00046575,120]
[339872209,1728097832825,-500.0,0.00046575,120]
[339872210,1728097832834,-500.0,0.00046575,120]
[339872211,1728097832846,-500.0,0.00046575,120]
[339872212,1728097832857,-500.0,0.00046575,120]
[339872213,1728097832866,-500.0,0.00046575,120]
[339872214,1728097832876,-500.0,0.00046575,120]
[339872215,1728097832886,-500.0,0.00046575,120]
[339872216,1728097832895,-164.41055753,0.00046575,120]
[339872217,1728097832904,-500.0,0.00046575,120]
[339872218,1728097832914,-517.1061929,0.00046575,120]
[339872219,1728097832923,-759.89,0.00046575,120]
[339872220,1728097832932,-759.89,0.00046575,120]
[339872221,1728097832941,-759.89,0.00046575,120]
[339872222,1728097832951,-759.89,0.00046575,120]
[339872223,1728097832960,-759.89,0.00046575,120]
[339872224,1728097832969,-759.89,0.00046575,120]
[339872225,1728097832979,-759.89,0.00046575,120]
[339872226,1728097832988,-759.89,0.00046575,120]
[339872227,1728097832998,-759.89,0.00046575,120]
[339872228,1728097833007,-759.89,0.00046575,120]
[339872229,1728097833017,-759.89,0.00046575,120]
[339872230,1728097833026,-759.89,0.00046575,120]
[339872231,1728097833036,-500.0,0.00046575,120]
[339872232,1728097833045,-315.18452004,0.00046575,120]
[339872233,1728097833055,-539.04742541,0.00046575,120]
[339872234,1728097833064,-500.0,0.00046575,120]
[339872235,1728097833074,-500.0,0.00046575,120]
[339872236,1728097833084,-500.0,0.00046575,120]
[339872237,1728097833096,-500.0,0.00046575,120]
[339872238,1728097833105,-500.0,0.00046575,120]
[339872239,1728097833115,-180.05856579,0.00046575,120]
[339872240,1728097833124,-500.0,0.00046575,120]
[339872241,1728097833135,-500.0,0.00046575,120]
[339872242,1728097833144,-502.7079281,0.00046575,120]
[339872243,1728097833154,-500.0,0.00046575,120]
[339872244,1728097833164,-189.04084382,0.00046575,120]
[339872245,1728097833178,-500.0,0.00046575,120]
[339872246,1728097833188,-504.56584968,0.00046575,120]
[339872247,1728097833197,-500.0,0.00046575,120]
[339872248,1728097833206,-500.0,0.00046575,120]
[339872249,1728097833216,-500.0,0.00046575,120]
[339872250,1728097833225,-500.0,0.00046575,120]
[339872251,1728097833235,-270.81245962,0.00046575,120]
[339872252,1728097833244,-415.89683658,0.00046575,120]
[339872253,1728097833255,-500.0,0.00046575,120]
[339872254,1728097833265,-500.0,0.00046575,120]
[339872255,1728097833274,-505.35835866,0.00046575,120]
[339872256,1728097833283,-500.0,0.00046575,120]
[339872257,1728097833292,-500.0,0.00046575,120]
[339872258,1728097833301,-503.00867224,0.00046575,120]
[339872259,1728097833311,-500.0,0.00046575,120]
[339872260,1728097833320,-500.0,0.00046575,120]
[339872261,1728097833329,-500.0,0.00046575,120]
[339872262,1728097833338,-500.0,0.00046575,120]
[339872263,1728097833348,-500.0,0.00046575,120]
[339872264,1728097833358,-500.0,0.00046575,120]
[339872265,1728097833367,-500.0,0.00046575,120]
[339872266,1728097833375,-500.0,0.00046575,120]
[339872267,1728097833384,-500.0,0.00046575,120]
[339872268,1728097833394,-500.0,0.00046575,120]
[339872269,1728097833403,-500.0,0.00046575,120]
[339872270,1728097833412,-500.0,0.00046575,120]
[339872271,1728097833421,-557.17791131,0.00046575,120]
[339872272,1728097833430,-174.43,0.00046619,2]
[339872273,1728097833439,-394.9553,0.000468,2]
[339872274,1728097833448,-157.65324008,0.00046873,120]
[339872275,1728097833457,-542.5271,0.00046889,2]
[339872276,1728097833466,-1233.73986794,0.00046899,15]
[339872277,1728097833476,-173.18979554,0.000469,22]
[339872278,1728097833484,-1355.63744862,0.000469,19]
[339872279,1728097833493,-157.65324005,0.00046961,120]
[339872280,1728097833502,-500.0,0.00046973,10]
[339872281,1728097833512,-158.74539217,0.00046989,120]
[339872282,1728097833521,-176.86,0.0004699,2]
[339872283,1728097833660,-176.86,0.0004699,2]
[339872284,1728097833670,-176.86,0.0004699,2]
[339872285,1728097833679,-176.86,0.0004699,2]
[339872286,1728097833688,-176.86,0.0004699,2]
[339872287,1728097833698,-176.86,0.0004699,2]
[339872288,1728097833707,-176.86,0.0004699,2]
[339872289,1728097833716,-176.86,0.0004699,2]
[339872290,1728097833725,-176.86,0.0004699,2]
[339872291,1728097833734,-176.86,0.0004699,2]
[339872292,1728097833743,-176.86,0.0004699,2]
[339872293,1728097833752,-241.55403764,0.00046999,7]
[339872294,1728097833762,-521.54515476,0.00046999,120]
[339872295,1728097833771,-759.89,0.00046999,120]
[339872296,1728097833780,-759.89,0.00046999,120]
[339872297,1728097833789,-759.89,0.00046999,120]
[339872298,1728097833798,-759.89,0.00046999,120]
[339872299,1728097833808,-759.89,0.00046999,120]
[339872300,1728097833817,-874.82,0.00046999,120]
[339872301,1728097833827,-874.82,0.00046999,120]
[339872302,1728097833836,-874.82,0.00046999,120]
[339872303,1728097833845,-874.82,0.00046999,120]
[339872304,1728097833855,-500.0,0.00046999,120]
[339872305,1728097833864,-500.0,0.00046999,120]
[339872306,1728097833873,-500.0,0.00046999,120]
[339872307,1728097833882,-500.0,0.00046999,120]
[339872308,1728097833892,-500.0,0.00046999,120]
[339872309,1728097833901,-500.0,0.00046999,120]
[339872310,1728097833911,-500.0,0.00046999,120]
[339872311,1728097833920,-500.0,0.00046999,120]
[339872312,1728097833930,-4843.83,0.00046999,120]
[339872313,1728097833939,-4843.83,0.00046999,120]
[339872314,1728097833949,-4843.83,0.00046999,120]
[339872315,1728097833958,-4843.83,0.00046999,120]
[339872316,1728097833968,-500.0,0.00046999,120]
[339872317,1728097833977,-500.0,0.00046999,120]
[339872318,1728097833986,-500.0,0.00046999,120]
[339872319,1728097833995,-500.0,0.00046999,120]
[339872320,1728097834005,-500.0,0.00046999,120]
[339872321,1728097834014,-511.50054604,0.00046999,120]
[339872322,1728097834024,-675.6,0.00046999,120]
[339872323,1728097834033,-675.6,0.00046999,120]
[339872324,1728097834043,-675.6,0.00046999,120]
[339872325,1728097834051,-675.6,0.00046999,120]
[339872326,1728097834061,-688.88,0.00046999,120]
[339872327,1728097834070,-688.88,0.00046999,120]
[339872328,1728097834079,-688.88,0.00046999,120]
[339872329,1728097834088,-688.88,0.00046999,120]
[339872330,1728097834098,-500.0,0.00046999,120]
[339872331,1728097834107,-500.0,0.00046999,120]
[339872332,1728097834117,-500.0,0.00046999,120]
[339872333,1728097834126,-500.0,0.00046999,120]
[339872334,1728097834139,-500.0,0.00046999,120]
[339872335,1728097834148,-500.0,0.00046999,120]
[339872336,1728097834158,-500.0,0.00046999,120]
[339872337,1728097834167,-500.0,0.00046999,120]
[339872338,1728097834179,-500.0,0.00046999,120]
[339872339,1728097834189,-500.0,0.00046999,120]
[339872340,1728097834198,-264.22672003,0.00046999,120]
[339872341,1728097834207,-168187.90125118,0.00047,120]
[339872342,1728097834248,-248.05624381,0.00046999,31]
[339872343,1728097834258,-5451.94375619,0.00047,120]
[339872344,1728097834269,-4281.85931737,0.00047,120]
[339872345,1728097834280,-344.40721085,0.00047,120]
[339872347,1728097837772,-882.6,0.00047,120]
[339872348,1728097837783,-796.44791203,0.00047,120]
[339872349,1728097837794,-14346.66954172,0.00047,120]
[339872350,1728097837805,-14455.66061,0.00047,120]
[339872351,1728097837928,-2244.55942848,0.00047,120]
[339872352,1728097837939,-435.12072548,0.00047,120]
[339872353,1728097837951,-5200.0,0.00047,120]
[339872354,1728097837963,-557.41518475,0.00047,120]
[339872355,1728097837974,-1374.77030409,0.00047,120]
[339872356,1728097837985,-6017.77011736,0.00047,120]
[339872357,1728097837996,-515.37635187,0.00047,120]
[339872358,1728097838008,-19537.18002361,0.00047,120]
[339872359,1728097838018,-618.75914436,0.00047,120]
[339872360,1728097838030,-977.70711692,0.00047,120]
[339872361,1728097838040,-544.57,0.00047,120]
[339872362,1728097838052,-32189.75695771,0.00047,120]
[339872363,1728097838063,-1079.34910173,0.00047,120]
[339872364,1728097838075,-450.95372915,0.00047,120]
[339872365,1728097838085,-73615.62040322,0.00047,120]
[339872366,1728097838096,-914.81898883,0.00047,120]
[339872378,1728097839958,-408.50450323,0.000469,2]
[339872379,1728097839967,-84328.64433508,0.00047,120]
[339872380,1728097839978,-38671.39032521,0.00047,120]
[339872381,1728097840055,-874.41081831,0.00047,120]
[339872382,1728097841804,-309.025,0.00047,120]
[339872391,1728097842792,-78963.2628918,0.00047,120]
[339872393,1728097842996,-1024.21344261,0.00047,120]
[339872397,1728097845937,-1149.12540544,0.0004606,10]
[339872398,1728097845947,-92791.36252648,0.00047,120]
[339872399,1728097845959,-5295.7,0.00047,120]
[339872400,1728097846152,-1558.26363126,0.00047,120]
[339872401,1728097846164,-602.2,0.00047,120]
[339872402,1728097846266,-535.83002223,0.00047,120]
[339872403,1728097846280,-434.24696448,0.00047,120]
[339872404,1728098087003,163.68,0.00010959,2]
[339872406,1728098668516,-300.0,0.00019725,2]
[339872407,1728098723617,166.19,0.00010959,2]
[339872410,1728098877942,7254.14,0.00011,2]
[339872411,1728098877968,776482.26523567,0.00011,2]
[339872429,1728099031971,-637.06237079,0.00010942,2]
[339872430,1728099031982,-263.0764486,0.00010942,2]
[339872431,1728099031993,-1499.86118061,0.00010942,2]
[339872433,1728099032003,-165.37716478,0.0001099,2]
[339872435,1728099032012,-165.37716478,0.0001099,2]
[339872437,1728099032021,-12801.11093235,0.00010997,2]
[339872438,1728099032030,-150.0,0.00010999,2]
[339872441,1728099032039,-173.63937067,0.00010999,2]
[339872443,1728099032049,-500.0,0.00010999,2]
[339872444,1728099032059,-500.0,0.00010999,2]
[339872445,1728099032068,-500.0,0.00010999,2]
[339872446,1728099032077,-500.0,0.00010999,2]
[339872447,1728099032086,-477.85690989,0.00010999,2]
[339872448,1728099032095,-711468.82594367,0.00011,2]
[339872449,1728099032106,-4248.04854285,0.00011,2]
[339872450,1728099032116,-2437.42812332,0.00011,2]
[339872451,1728099032127,-767.70891872,0.00011,2]
[339872452,1728099032138,-468.72740377,0.00011,2]
[339872453,1728099032152,-54359.44712503,0.00011,2]
[339872454,1728099032163,-893.45933956,0.00011,2]
[339872455,1728099032212,-195406.02329269,0.00011,2]
[339872456,1728099032226,-25394.57336559,0.00011,2]
[339872457,1728099032239,-10944.33301878,0.00011,2]
[339872458,1728099032250,-3201.75970489,0.00011,2]
[339872459,1728099032263,-9791.13586548,0.00011,2]
[339872460,1728099032274,-3834.24735406,0.00011,2]
[339872461,1728099032285,-10977.721407,0.00011,2]
[339872462,1728099032297,-1658.08215082,0.00011,2]
[339872463,1728099037936,-28220.55935827,0.00011,2]
[339872465,1728099038144,-3235.75,0.00011,2]
[339872466,1728099038156,-6903.18681663,0.00011,2]
[339872467,1728099038167,-568129.43205573,0.00011,2]
[339872468,1728099038179,-461.545,0.00011,2]
[339872469,1728099038193,-291.25670024,0.00011,2]
[339872470,1728099038353,-1373.83926939,0.00011,2]
[339872484,1728099040013,-400.07483383,0.00011,2]
[339872485,1728099040025,-745.83403878,0.00011,2]
[339872486,1728099040039,-5464.19112739,0.00011,2]
[339872488,1728099040246,-3372.01918092,0.00011,2]
[339872489,1728099040258,-363.46541119,0.00011,2]
[339872490,1728099040288,-37374.0129,0.00011,2]
[339872492,1728099043153,-5161.16,0.00011,2]
[339872493,1728099043385,-1309.9999992,0.00011,2]
[339872494,1728099043396,-5693.25,0.00011,2]
[339872495,1728099045959,-369.5791895,0.00011,2]
[339872497,1728099063542,192.5,0.0001379,30]
[339872498,1728099139123,1584.01,0.00010858,2]
[339872499,1728099184887,-156.13895267,0.00010758,2]
[339872500,1728099184908,-843.86104733,0.00010803,2]
[339872501,1728099187304,-1000.0,0.00010803,2]
[339872502,1728099188971,-815.04083667,0.00010803,2]
[339872503,1728099188991,-184.95916333,0.00010858,2]
[339872504,1728099190909,-1000.0,0.00010858,2]
[339872505,1728099192253,-794.16795189,0.00010858,2]
[339872506,1728099192274,-205.83204811,0.00010959,2]
[339872507,1728099204142,-252.28795189,0.00010959,2]
[339872508,1728099204163,-347.71204811,0.00010959,2]
[339872509,1728099231425,1029.77756922,0.00010859,2]
[339872510,1728099233821,6541.3548,0.00010859,2]
[339872511,1728099348472,-172.42,0.00010959,2]
[339872512,1728099348492,-323.81,0.00010959,2]
[339872513,1728099348513,-269.84,0.00010959,2]
[339872514,1728099348533,-224.87,0.00010959,2]
[339872515,1728099348557,-9.06,0.00010999,2]
[339872516,1728099351499,-140.94,0.00010999,2]
[339872517,1728099351524,-581.22569491,0.00010999,2]
[339872518,1728099351545,-277.83430509,0.00011,2]
[339872519,1728099354012,-187.39,0.00010959,2]
[339872520,1728099354034,-812.61,0.00011,2]
[339872521,1728099355780,-1000.0,0.00011,2]
[339872522,1728099359081,-490000.0,0.00011,2]
[339872523,1728099364405,-150.0,0.00010959,2]
[339872524,1728099502820,-786.97,0.00010959,2]
[339872525,1728099502841,-213.03,0.0001098,2]
[339872526,1728099505054,-1000.0,0.0001098,2]
[339872527,1728099506416,-1000.0,0.0001098,2]
[339872528,1728099507665,-1000.0,0.0001098,2]
[339872529,1728099509504,-722.31287906,0.0001098,2]
[339872530,1728099509524,-277.68712094,0.0001099,2]
[339872531,1728099510954,-1000.0,0.0001099,2]
[339872532,1728099512387,-643.72977906,0.0001099,2]
[339872533,1728099512408,-150.0,0.00010999,2]
[339872534,1728099512429,-206.27022094,0.00010999,2]
[339872535,1728099512523,506.284,0.0001078,2]
[339872536,1728099512742,167.982,0.0001078,2]
[339872537,1728099514301,-93.72977906,0.00010999,2]
[339872538,1728099514322,-906.27022094,0.00011,2]
[339872539,1728099518958,-800.0,0.00011,2]
[339872540,1728100155070,-150.44,0.00010959,2]
[339872541,1728100155097,-475.08403023,0.00010999,2]
[339872542,1728100155120,-606.63250895,0.00010999,2]
[339872543,1728100155143,-48767.84346082,0.00011,2]
[339872544,1728100156110,-50000.0,0.00011,2]
[339872545,1728100156943,-50000.0,0.00011,2]
[339872546,1728100157749,-50000.0,0.00011,2]
[339872547,1728100158577,-50000.0,0.00011,2]
[339872548,1728100159359,-50000.0,0.00011,2]
[339872549,1728100160196,-50000.0,0.00011,2]
[339872550,1728100160912,-50000.0,0.00011,2]
[339872551,1728100161719,-50000.0,0.00011,2]
[339872552,1728100162727,-50000.0,0.00011,2]
[339872572,1728100231903,-300.0,0.00010999,2]
[339872574,1728100231913,-3808.99,0.00011,2]
[339872582,1728100231983,-291.65,0.00011,2]
[339872584,1728100232066,-2204.70442374,0.00011,2]
[339872585,1728100232078,-1797.09699409,0.00011,2]
[339872586,1728100234723,-795.93759924,0.00011,2]
[339872587,1728100234734,-438.899,0.00011,2]
[339872588,1728100234745,-2030.54494733,0.00011,2]
[339872589,1728100234756,-1284.40976051,0.00011,2]
[339872590,1728100234767,-405.84115355,0.00011,2]
[339872591,1728100238019,-928.09483319,0.00011,2]
[339872592,1728100238094,-12432.88205,0.00011,2]
[339872596,1728100240117,-86883.26852598,0.00011,2]
[339872606,1728100240450,-516.75024294,0.00011,2]
[339872608,1728100240463,-403.03997345,0.00011,2]
[339872612,1728100240486,-828.52759742,0.00011,2]
[339872614,1728100240497,-1594.43651587,0.00011,2]
[339872616,1728100240508,-46715.93877364,0.00011,2]
[339872618,1728100240519,-3496.78494669,0.00011,2]
[339872620,1728100240531,-680.06187368,0.00011,2]
[339872705,1728100243009,-834.27,0.00010959,2]
[339872706,1728100243018,-12073.37513513,0.00011,2]
[339872707,1728100243204,-7.03911771,0.00011,2]
[339872708,1728100243216,-993.56644484,0.00011,2]
[339872709,1728100243227,-2623.00655929,0.00011,2]
[339872710,1728100243239,-438.44803951,0.00011,2]
[339872712,1728100246010,-10534.54477223,0.00011,2]
[339872714,1728100246021,-3893.8786,0.00011,2]
[339872715,1728100246032,-6777.28235615,0.00011,2]
[339872716,1728100246043,-583914.35243568,0.00011,2]
[339872717,1728100246054,-4882.04388015,0.00011,2]
[339872718,1728100246273,-1277.70535352,0.00011,2]
[339872723,1728100484891,216.87674821,0.000109,2]
[339872724,1728100491228,2176.51187445,0.000109,2]
[339872725,1728100575376,-174.51,0.00010959,2]
[339872726,1728100575404,-150.0,0.00010999,2]
[339872727,1728100575425,-199675.49,0.00011,2]
[339872729,1728100894807,-8561.21905217,0.0001099,2]
[339872730,1728100894830,-71438.78094783,0.00011,2]
[339872731,1728101013505,1890.0618,0.0001089,2]
[339872732,1728101051506,-50000.0,0.00011,2]
[339872733,1728101101001,-29840.69704845,0.00011,2]
[339872734,1728101101024,-500.0,0.00011,2]
[339872735,1728101101049,-500.0,0.00011,2]
[339872736,1728101101071,-770.0,0.00011,2]
[339872737,1728101125819,-2685.632806,0.00014,7]
[339872738,1728101125843,-514.11729595,0.00015,10]
[339872739,1728101228274,333.0,0.00015,5]
[339872754,1728101432071,-408.2315313,0.00011274,2]
[339872755,1728101432081,-250.0,0.00013,2]
[339872756,1728101432091,-500.0,0.00013699,2]
[339872757,1728101432100,-295.18541386,0.00013699,2]
[339872758,1728101432109,-150.23374195,0.00014925,2]
[339872759,1728101432119,-269.4450818,0.00014999,2]
[339872760,1728101432129,-160.24,0.00014999,2]
[339872761,1728101432138,-300.0,0.00014999,2]
[339872762,1728101432147,-499.99,0.00015,2]
[339872763,1728101432156,-858.01366124,0.00015,2]
[339872764,1728101432169,-404.45633876,0.00015,2]
[339872765,1728101432178,-74.70366124,0.00015,2]
[339872766,1728101432189,-735.86918138,0.00015,2]
[339872767,1728101432200,-4381.58715738,0.00015,2]
[339872768,1728101432210,-96.45570475,0.00015,2]
[339872769,1728101432221,-203.54429525,0.00015,2]
[339872770,1728101432230,-120.46597985,0.00015,2]
[339872771,1728101432244,-42.28402015,0.00015,2]
[339872772,1728101432252,-420.0,0.00016416,2]
[339872773,1728101432261,-192.02784622,0.00017,2]
[339872774,1728101432272,-1346.35215378,0.00017,2]
[339872775,1728101432282,-350.0,0.00017,2]
[339872776,1728101432292,-503.0,0.00017966,2]
[339872777,1728101432301,-2928.0,0.000186,2]
[339872778,1728101432309,-400.0,0.00019,2]
[339872779,1728101432319,-450.0,0.00021,2]
[339872780,1728101432328,-160.03,0.00021103,2]
[339872781,1728101432337,-2928.66851099,0.000214,2]
[339872782,1728101432346,-250.0,0.00021917,2]
[339872783,1728101432356,-500.0,0.00023,2]
[339872784,1728101432365,-160.03,0.00023741,2]
[339872785,1728101432373,-655.0,0.00024,2]
[339872786,1728101432382,-213.78,0.00024081,2]
[339872787,1728101432391,-213.78,0.00024201,2]
[339872788,1728101432402,-3945.0,0.000246,3]
[339872789,1728101432412,-500.0,0.00024657,2]
[339872790,1728101432421,-181.3,0.00024931,2]
[339872791,1728101432430,-550.0,0.00025,2]
[339872792,1728101432440,-252.99,0.00025304,2]
[339872793,1728101432449,-440.465,0.00025477,10]
[339872794,1728101432459,-187.15,0.0002554,2]
[339872795,1728101432468,-1666.0,0.000258,5]
[339872796,1728101432477,-1000.0,0.00025949,2]
[339872797,1728101432486,-4267.81,0.00026017,2]
[339872798,1728101432496,-200.0,0.00026025,2]
[339872799,1728101432506,-250.0,0.00026134,2]
[339872800,1728101432515,-1736.78,0.00026288,2]
[339872801,1728101432524,-174.34,0.00026326,2]
[339872802,1728101432534,-160.03,0.00026378,2]
[339872803,1728101432543,-500.0,0.00026409,2]
[339872804,1728101432552,-150.0,0.00026486,2]
[339872805,1728101432561,-174.37,0.00026744,2]
[339872806,1728101432571,-354.54581186,0.0002678,120]
[339872807,1728101432628,-1645.45418814,0.0002678,120]
[339872808,1728101432637,-250.04401004,0.00026858,2]
[339872809,1728101432646,-8999.54830143,0.00026868,2]
[339872810,1728101432657,-14900.45169857,0.00026868,2]
[339872811,1728101432667,-250.0,0.00026895,2]
[339872812,1728101432676,-1677.01,0.00026925,2]
[339872813,1728101432685,-190.7,0.0002697,120]
[339872814,1728101432694,-600.0,0.00027,2]